[Event "Titled Tuesday Blitz September 27 Late 2022"]
[White "Leiva, Gianmarco"]
[Black "De La Colina, Nicolas"]
[WhiteFideId "3804399"]
[BlackFideId "30946921"]
[WhiteElo "2323"]
[BlackElo "2046"]
[Result "1-0"]
[Round "11"]
[TimeControl "180+1"]
[Date "2022.09.27"]
[WhiteClock "0:00:14"]
[BlackClock "0:00:03"]

1. e4 {[%clk 0:02:50]}  c5 {[%clk 0:02:55]} 2. Nf3 {[%clk 0:02:41]}  Nc6 {[%clk 0:02:55]} 3. Bb5 {[%clk 0:02:40]}  Nf6 {[%clk 0:02:54]} 4. Nc3 {[%clk 0:02:40]}  g6 {[%clk 0:02:54]} 5. O-O {[%clk 0:02:40]}  Bg7 {[%clk 0:02:54]} 6. Re1 {[%clk 0:02:40]}  O-O {[%clk 0:02:54]} 7. a4 {[%clk 0:02:40]}  d6 {[%clk 0:02:43]} 8. h3 {[%clk 0:02:36]}  e5 {[%clk 0:02:41]} 9. d3 {[%clk 0:02:35]}  h6 {[%clk 0:02:39]} 10. Bc4 {[%clk 0:02:25]}  Kh7 {[%clk 0:02:35]} 11. Nd5 {[%clk 0:02:25]}  Be6 {[%clk 0:02:28]} 12. Nxf6+ {[%clk 0:02:17]}  Qxf6 {[%clk 0:02:28]} 13. Bxe6 {[%clk 0:02:16]}  fxe6 {[%clk 0:02:29]} 14. c3 {[%clk 0:02:16]}  g5 {[%clk 0:02:25]} 15. Be3 {[%clk 0:02:16]}  Rad8 {[%clk 0:02:15]} 16. a5 {[%clk 0:02:15]}  Rd7 {[%clk 0:02:11]} 17. a6 {[%clk 0:02:14]}  b6 {[%clk 0:02:09]} 18. b4 {[%clk 0:02:09]}  Ne7 {[%clk 0:01:48]} 19. d4 {[%clk 0:02:00]}  exd4 {[%clk 0:01:45]} 20. cxd4 {[%clk 0:02:01]}  Ng6 {[%clk 0:01:42]} 21. dxc5 {[%clk 0:01:59]}  Qxa1 {[%clk 0:01:31]} 22. Qxa1 {[%clk 0:01:58]}  Bxa1 {[%clk 0:01:32]} 23. Rxa1 {[%clk 0:01:59]}  dxc5 {[%clk 0:01:28]} 24. bxc5 {[%clk 0:01:59]}  bxc5 {[%clk 0:01:28]} 25. Bxc5 {[%clk 0:02:00]}  Rfd8 {[%clk 0:01:22]} 26. Kh2 {[%clk 0:01:53]}  Rc8 {[%clk 0:01:21]} 27. Be3 {[%clk 0:01:53]}  e5 {[%clk 0:01:05]} 28. Rb1 {[%clk 0:01:46]}  Rcc7 {[%clk 0:01:02]} 29. Rb5 {[%clk 0:01:45]}  Re7 {[%clk 0:00:55]} 30. Bc5 {[%clk 0:01:44]}  Rf7 {[%clk 0:00:45]} 31. Bd6 {[%clk 0:01:17]}  Rc6 {[%clk 0:00:44]} 32. Bxe5 {[%clk 0:01:18]}  Rxa6 {[%clk 0:00:40]} 33. Bd4 {[%clk 0:01:18]}  Re7 {[%clk 0:00:38]} 34. e5 {[%clk 0:01:14]}  Ra2 {[%clk 0:00:31]} 35. Kg3 {[%clk 0:01:06]}  a5 {[%clk 0:00:27]} 36. Kg4 {[%clk 0:01:05]}  a4 {[%clk 0:00:18]} 37. Kf5 {[%clk 0:01:05]}  Rc2 {[%clk 0:00:12]} 38. Rb6 {[%clk 0:01:00]}  Nh4+ {[%clk 0:00:07]} 39. Nxh4 {[%clk 0:01:00]}  gxh4 {[%clk 0:00:08]} 40. Ra6 {[%clk 0:00:58]}  Rc4 {[%clk 0:00:07]} 41. Be3 {[%clk 0:00:57]}  Rf7+ {[%clk 0:00:06]} 42. Ke6 {[%clk 0:00:57]}  Rg7 {[%clk 0:00:06]} 43. Kd5 {[%clk 0:00:57]}  Rb4 {[%clk 0:00:04]} 44. Rxh6+ {[%clk 0:00:23]}  Kg8 {[%clk 0:00:04]} 45. Bc5 {[%clk 0:00:24]}  Rb2 {[%clk 0:00:03]} 46. Rxh4 {[%clk 0:00:23]}  Rxg2 {[%clk 0:00:02]} 47. Rxa4 {[%clk 0:00:23]}  Rd2+ {[%clk 0:00:02]} 48. Ke6 {[%clk 0:00:22]}  Rh2 {[%clk 0:00:02]} 49. Rg4+ {[%clk 0:00:20]}  Kh7 {[%clk 0:00:02]} 50. Kf7 {[%clk 0:00:19]}  Rxh3 {[%clk 0:00:02]} 51. f4 {[%clk 0:00:16]}  Rd5 {[%clk 0:00:01]} 52. Be7 {[%clk 0:00:15]}  Rh5 {[%clk 0:00:01]} 53. Bf6 {[%clk 0:00:14]}  Rd1 {[%clk 0:00:02]} 54. e6 {[%clk 0:00:14]}  Re1 {[%clk 0:00:02]} 55. e7 {[%clk 0:00:14]}  Rh2 {[%clk 0:00:02]} 56. e8=Q {[%clk 0:00:13]}  Rxe8 {[%clk 0:00:03]} 57. Kxe8 {[%clk 0:00:14]}  Rf2 {[%clk 0:00:03]} 58. Kf7 {[%clk 0:00:14]}  Kh6 {[%clk 0:00:03]} 59. Rh4# {[%clk 0:00:14]} 1-0


[Site "https://www.chess.com"]

[Event "Titled Tuesday Blitz September 27 Late 2022"]
[White "Mikhailov, Viacheslav"]
[Black "Koellner, Ruben Gideon"]
[WhiteFideId "4187369"]
[BlackFideId "12993093"]
[WhiteElo "2381"]
[BlackElo "2286"]
[Result "1-0"]
[Round "11"]
[TimeControl "180+1"]
[Date "2022.09.27"]
[WhiteClock "0:00:10"]
[BlackClock "0:00:01"]

1. Nf3 {[%clk 0:03:00]}  Nf6 {[%clk 0:02:59]} 2. g3 {[%clk 0:03:00]}  d5 {[%clk 0:02:59]} 3. Bg2 {[%clk 0:03:01]}  Nbd7 {[%clk 0:03:00]} 4. O-O {[%clk 0:03:01]}  e5 {[%clk 0:03:00]} 5. c4 {[%clk 0:03:02]}  c6 {[%clk 0:03:00]} 6. cxd5 {[%clk 0:03:02]}  cxd5 {[%clk 0:03:01]} 7. d3 {[%clk 0:03:03]}  Bd6 {[%clk 0:02:59]} 8. Nc3 {[%clk 0:03:03]}  a6 {[%clk 0:03:00]} 9. Bg5 {[%clk 0:03:04]}  h6 {[%clk 0:02:58]} 10. Bxf6 {[%clk 0:03:04]}  Nxf6 {[%clk 0:02:59]} 11. Nd2 {[%clk 0:03:05]}  Be6 {[%clk 0:02:55]} 12. Qb3 {[%clk 0:02:54]}  d4 {[%clk 0:02:38]} 13. Nd5 {[%clk 0:02:54]}  Rb8 {[%clk 0:02:09]} 14. Nxf6+ {[%clk 0:02:43]}  Qxf6 {[%clk 0:02:10]} 15. Bd5 {[%clk 0:02:42]}  Ke7 {[%clk 0:01:48]} 16. Ne4 {[%clk 0:02:36]}  Bxd5 {[%clk 0:01:42]} 17. Qxd5 {[%clk 0:02:37]}  Qe6 {[%clk 0:01:41]} 18. Qa5 {[%clk 0:02:33]}  Rhc8 {[%clk 0:01:27]} 19. Rfc1 {[%clk 0:02:30]}  f5 {[%clk 0:01:19]} 20. Nd2 {[%clk 0:02:21]}  Kf6 {[%clk 0:01:08]} 21. Nf3 {[%clk 0:02:02]}  g5 {[%clk 0:00:59]} 22. Qb6 {[%clk 0:01:26]}  Be7 {[%clk 0:00:40]} 23. Qa5 {[%clk 0:00:55]}  g4 {[%clk 0:00:34]} 24. Nh4 {[%clk 0:00:55]}  Kf7 {[%clk 0:00:23]} 25. Rc7 {[%clk 0:00:30]}  b6 {[%clk 0:00:06]} 26. Rxc8 {[%clk 0:00:29]}  Rxc8 {[%clk 0:00:07]} 27. Qxa6 {[%clk 0:00:29]}  Bxh4 {[%clk 0:00:06]} 28. gxh4 {[%clk 0:00:30]}  Rc2 {[%clk 0:00:05]} 29. Qb7+ {[%clk 0:00:25]}  Kg6 {[%clk 0:00:05]} 30. a4 {[%clk 0:00:21]}  Rxe2 {[%clk 0:00:02]} 31. Rc1 {[%clk 0:00:20]}  Kh5 {[%clk 0:00:02]} 32. b4 {[%clk 0:00:15]}  Kxh4 {[%clk 0:00:01]} 33. Kf1 {[%clk 0:00:10]}  Rb2 {[%clk 0:00:01]} 34. Qg7 {[%clk 0:00:10]} 1-0


[Site "https://www.chess.com"]

[Event "Titled Tuesday Blitz September 27 Late 2022"]
[White "Mohammadian, Mohammad"]
[Black "Joubert, Dantelle"]
[WhiteFideId "12566055"]
[BlackFideId "14310813"]
[WhiteElo "1489"]
[BlackElo "1507"]
[Result "0-1"]
[Round "11"]
[TimeControl "180+1"]
[Date "2022.09.28"]
[WhiteClock "0:00:17"]
[BlackClock "0:00:18"]

1. e4 {[%clk 0:03:00]}  e5 {[%clk 0:01:27]} 2. Nf3 {[%clk 0:03:00]}  Nc6 {[%clk 0:01:27]} 3. Bb5 {[%clk 0:02:59]}  Nf6 {[%clk 0:01:26]} 4. O-O {[%clk 0:02:58]}  Nxe4 {[%clk 0:01:24]} 5. Re1 {[%clk 0:02:55]}  Nd6 {[%clk 0:01:23]} 6. Bxc6 {[%clk 0:02:54]}  dxc6 {[%clk 0:01:23]} 7. Nxe5 {[%clk 0:02:54]}  Be7 {[%clk 0:01:23]} 8. Nf3 {[%clk 0:02:52]}  O-O {[%clk 0:01:22]} 9. h3 {[%clk 0:02:51]}  Bf5 {[%clk 0:01:17]} 10. d4 {[%clk 0:02:50]}  Bf6 {[%clk 0:01:07]} 11. c3 {[%clk 0:02:50]}  Re8 {[%clk 0:01:03]} 12. Be3 {[%clk 0:02:48]}  Nc4 {[%clk 0:01:00]} 13. Qb3 {[%clk 0:02:36]}  b5 {[%clk 0:00:54]} 14. Nbd2 {[%clk 0:02:31]}  Nxd2 {[%clk 0:00:46]} 15. Nxd2 {[%clk 0:02:30]}  Qd5 {[%clk 0:00:43]} 16. Qxd5 {[%clk 0:02:29]}  cxd5 {[%clk 0:00:42]} 17. Nf3 {[%clk 0:02:26]}  Be4 {[%clk 0:00:35]} 18. Nd2 {[%clk 0:02:23]}  Bf5 {[%clk 0:00:33]} 19. Nb3 {[%clk 0:02:19]}  Be7 {[%clk 0:00:22]} 20. Nd2 {[%clk 0:02:16]}  Bd6 {[%clk 0:00:22]} 21. Nf3 {[%clk 0:02:15]}  Re7 {[%clk 0:00:20]} 22. Nh2 {[%clk 0:02:06]}  Rae8 {[%clk 0:00:19]} 23. Nf1 {[%clk 0:02:04]}  Bd3 {[%clk 0:00:19]} 24. Nd2 {[%clk 0:01:53]}  f5 {[%clk 0:00:18]} 25. Nf3 {[%clk 0:01:47]}  Be4 {[%clk 0:00:18]} 26. Bd2 {[%clk 0:01:42]}  Bxf3 {[%clk 0:00:16]} 27. gxf3 {[%clk 0:01:41]}  Rxe1+ {[%clk 0:00:16]} 28. Rxe1 {[%clk 0:01:40]}  Rxe1+ {[%clk 0:00:16]} 29. Bxe1 {[%clk 0:01:39]}  Kf7 {[%clk 0:00:17]} 30. Kg2 {[%clk 0:01:38]}  h6 {[%clk 0:00:18]} 31. b3 {[%clk 0:01:36]}  Bf4 {[%clk 0:00:17]} 32. h4 {[%clk 0:01:28]}  c6 {[%clk 0:00:17]} 33. a4 {[%clk 0:01:21]}  a6 {[%clk 0:00:17]} 34. axb5 {[%clk 0:01:18]}  cxb5 {[%clk 0:00:17]} 35. b4 {[%clk 0:01:17]}  Kg6 {[%clk 0:00:16]} 36. Kh3 {[%clk 0:01:15]}  Kh5 {[%clk 0:00:16]} 37. Kg2 {[%clk 0:00:59]}  Kxh4 {[%clk 0:00:16]} 38. Kf1 {[%clk 0:00:59]}  Kg5 {[%clk 0:00:16]} 39. Ke2 {[%clk 0:00:59]}  Kf6 {[%clk 0:00:16]} 40. Bd2 {[%clk 0:00:58]}  Bxd2 {[%clk 0:00:15]} 41. Kxd2 {[%clk 0:00:58]}  Kg5 {[%clk 0:00:16]} 42. Ke2 {[%clk 0:00:58]}  Kf4 {[%clk 0:00:15]} 43. Kf1 {[%clk 0:00:41]}  Kxf3 {[%clk 0:00:15]} 44. Kg1 {[%clk 0:00:41]}  g5 {[%clk 0:00:15]} 45. Kh2 {[%clk 0:00:38]}  h5 {[%clk 0:00:16]} 46. Kg1 {[%clk 0:00:36]}  h4 {[%clk 0:00:16]} 47. Kf1 {[%clk 0:00:36]}  g4 {[%clk 0:00:16]} 48. Kg1 {[%clk 0:00:35]}  f4 {[%clk 0:00:16]} 49. Kf1 {[%clk 0:00:35]}  g3 {[%clk 0:00:16]} 50. fxg3 {[%clk 0:00:33]}  fxg3 {[%clk 0:00:17]} 51. Kg1 {[%clk 0:00:33]}  h3 {[%clk 0:00:17]} 52. Kh1 {[%clk 0:00:30]}  Ke3 {[%clk 0:00:17]} 53. Kg1 {[%clk 0:00:29]}  Kd3 {[%clk 0:00:17]} 54. Kf1 {[%clk 0:00:27]}  Kd2 {[%clk 0:00:17]} 55. Kg1 {[%clk 0:00:26]}  Kxc3 {[%clk 0:00:17]} 56. Kf1 {[%clk 0:00:26]}  Kd2 {[%clk 0:00:17]} 57. Kg1 {[%clk 0:00:26]}  Kd3 {[%clk 0:00:17]} 58. Kf1 {[%clk 0:00:25]}  Kxd4 {[%clk 0:00:18]} 59. Kg1 {[%clk 0:00:25]}  Ke4 {[%clk 0:00:18]} 60. Kf1 {[%clk 0:00:25]}  Ke3 {[%clk 0:00:18]} 61. Kg1 {[%clk 0:00:25]}  d4 {[%clk 0:00:19]} 62. Kf1 {[%clk 0:00:23]}  d3 {[%clk 0:00:19]} 63. Kg1 {[%clk 0:00:22]}  d2 {[%clk 0:00:18]} 64. Kf1 {[%clk 0:00:17]}  d1=Q# {[%clk 0:00:18]} 0-1


[Site "https://www.chess.com"]

[Event "Titled Tuesday Blitz September 27 Late 2022"]
[White "Murtazin, Ruslan"]
[Black "D`Arruda, Ricardo D."]
[WhiteFideId "24175960"]
[BlackFideId "100692"]
[WhiteElo "2212"]
[BlackElo "2428"]
[Result "1-0"]
[Round "11"]
[TimeControl "180+1"]
[Date "2022.09.28"]
[WhiteClock "0:00:06"]
[BlackClock "0:00:09"]

1. e4 {[%clk 0:02:59]}  c5 {[%clk 0:02:16]} 2. Nf3 {[%clk 0:02:57]}  Nc6 {[%clk 0:02:15]} 3. d4 {[%clk 0:02:56]}  cxd4 {[%clk 0:02:14]} 4. Nxd4 {[%clk 0:02:57]}  e5 {[%clk 0:02:14]} 5. Nb5 {[%clk 0:02:56]}  a6 {[%clk 0:02:14]} 6. Nd6+ {[%clk 0:02:56]}  Bxd6 {[%clk 0:02:15]} 7. Qxd6 {[%clk 0:02:57]}  Qe7 {[%clk 0:02:15]} 8. Qd3 {[%clk 0:02:52]}  Nf6 {[%clk 0:02:14]} 9. Nc3 {[%clk 0:02:51]}  d6 {[%clk 0:02:14]} 10. Bg5 {[%clk 0:02:51]}  Be6 {[%clk 0:02:14]} 11. a3 {[%clk 0:02:44]}  O-O {[%clk 0:02:12]} 12. Be2 {[%clk 0:02:43]}  Rfd8 {[%clk 0:02:11]} 13. Rd1 {[%clk 0:02:42]}  h6 {[%clk 0:02:11]} 14. Bxf6 {[%clk 0:02:37]}  Qxf6 {[%clk 0:02:12]} 15. O-O {[%clk 0:02:37]}  Rac8 {[%clk 0:02:11]} 16. Qg3 {[%clk 0:02:34]}  Nd4 {[%clk 0:02:07]} 17. Bd3 {[%clk 0:02:34]}  Bc4 {[%clk 0:02:01]} 18. f4 {[%clk 0:02:34]}  Bxd3 {[%clk 0:01:55]} 19. Qxd3 {[%clk 0:02:28]}  Qe6 {[%clk 0:01:38]} 20. Rf2 {[%clk 0:02:19]}  f6 {[%clk 0:01:35]} 21. Nd5 {[%clk 0:02:19]}  Rc6 {[%clk 0:01:23]} 22. c3 {[%clk 0:02:18]}  Nb3 {[%clk 0:01:23]} 23. Qg3 {[%clk 0:02:09]}  Kh8 {[%clk 0:01:15]} 24. Qg6 {[%clk 0:02:07]}  Rf8 {[%clk 0:01:06]} 25. Rf3 {[%clk 0:01:53]}  Nc5 {[%clk 0:01:04]} 26. Rh3 {[%clk 0:01:45]}  Qf7 {[%clk 0:01:02]} 27. Qf5 {[%clk 0:01:35]}  Qe6 {[%clk 0:00:57]} 28. Qxe6 {[%clk 0:01:29]}  Nxe6 {[%clk 0:00:58]} 29. fxe5 {[%clk 0:01:24]}  dxe5 {[%clk 0:00:38]} 30. Ne7 {[%clk 0:01:23]}  Nf4 {[%clk 0:00:38]} 31. Rf3 {[%clk 0:00:56]}  Rc7 {[%clk 0:00:38]} 32. Nf5 {[%clk 0:00:55]}  Rc4 {[%clk 0:00:36]} 33. g3 {[%clk 0:00:54]}  Ne6 {[%clk 0:00:36]} 34. Nd6 {[%clk 0:00:50]}  Rc7 {[%clk 0:00:35]} 35. Rfd3 {[%clk 0:00:48]}  Kh7 {[%clk 0:00:32]} 36. h4 {[%clk 0:00:48]}  Rd8 {[%clk 0:00:32]} 37. Kf2 {[%clk 0:00:33]}  Rcd7 {[%clk 0:00:32]} 38. Ke3 {[%clk 0:00:33]}  Nc5 {[%clk 0:00:32]} 39. Rd5 {[%clk 0:00:32]}  b6 {[%clk 0:00:28]} 40. Nc4 {[%clk 0:00:25]}  Rxd5 {[%clk 0:00:25]} 41. Rxd5 {[%clk 0:00:26]}  Rxd5 {[%clk 0:00:25]} 42. exd5 {[%clk 0:00:27]}  Nd7 {[%clk 0:00:25]} 43. h5 {[%clk 0:00:22]}  g6 {[%clk 0:00:24]} 44. g4 {[%clk 0:00:19]}  f5 {[%clk 0:00:23]} 45. gxf5 {[%clk 0:00:16]}  gxf5 {[%clk 0:00:22]} 46. Nd6 {[%clk 0:00:17]}  f4+ {[%clk 0:00:20]} 47. Ke4 {[%clk 0:00:17]}  Kg7 {[%clk 0:00:19]} 48. Kf5 {[%clk 0:00:14]}  f3 {[%clk 0:00:18]} 49. Ne4 {[%clk 0:00:14]}  Kf7 {[%clk 0:00:16]} 50. c4 {[%clk 0:00:11]}  a5 {[%clk 0:00:15]} 51. b4 {[%clk 0:00:11]}  axb4 {[%clk 0:00:15]} 52. axb4 {[%clk 0:00:12]}  Ke7 {[%clk 0:00:15]} 53. Nf2 {[%clk 0:00:07]}  Kf7 {[%clk 0:00:15]} 54. Ke4 {[%clk 0:00:06]}  Kf6 {[%clk 0:00:14]} 55. Kxf3 {[%clk 0:00:06]}  Kg5 {[%clk 0:00:15]} 56. Ne4+ {[%clk 0:00:05]}  Kxh5 {[%clk 0:00:15]} 57. c5 {[%clk 0:00:05]}  bxc5 {[%clk 0:00:15]} 58. bxc5 {[%clk 0:00:06]}  Kg6 {[%clk 0:00:15]} 59. c6 {[%clk 0:00:06]}  Nb6 {[%clk 0:00:14]} 60. d6 {[%clk 0:00:06]}  Kf7 {[%clk 0:00:15]} 61. d7 {[%clk 0:00:05]}  Ke7 {[%clk 0:00:12]} 62. Nc5 {[%clk 0:00:04]}  Kd8 {[%clk 0:00:11]} 63. Ke4 {[%clk 0:00:04]}  Nxd7 {[%clk 0:00:09]} 64. cxd7 {[%clk 0:00:03]}  h5 {[%clk 0:00:10]} 65. Kxe5 {[%clk 0:00:04]}  h4 {[%clk 0:00:09]} 66. Kd6 {[%clk 0:00:05]}  h3 {[%clk 0:00:09]} 67. Ne6# {[%clk 0:00:06]} 1-0


[Site "https://www.chess.com"]

[Event "Titled Tuesday Blitz September 27 Late 2022"]
[White "Ovezdurdyyeva, Jemal"]
[Black "Moaataz, Ayah"]
[WhiteFideId "14001888"]
[BlackFideId "10615873"]
[WhiteElo "1946"]
[BlackElo "1993"]
[Result "1-0"]
[Round "11"]
[TimeControl "180+1"]
[Date "2022.09.28"]
[WhiteClock "0:00:21"]
[BlackClock "0:00:26"]

1. e4 {[%clk 0:03:00]}  c6 {[%clk 0:03:00]} 2. d4 {[%clk 0:02:59]}  d5 {[%clk 0:03:01]} 3. Nc3 {[%clk 0:02:59]}  dxe4 {[%clk 0:03:00]} 4. Nxe4 {[%clk 0:02:58]}  Bf5 {[%clk 0:03:01]} 5. Ng3 {[%clk 0:02:57]}  Bg6 {[%clk 0:03:01]} 6. h4 {[%clk 0:02:58]}  h6 {[%clk 0:03:02]} 7. Nf3 {[%clk 0:02:58]}  Nd7 {[%clk 0:03:02]} 8. Bd3 {[%clk 0:02:53]}  Bxd3 {[%clk 0:03:02]} 9. Qxd3 {[%clk 0:02:54]}  Ngf6 {[%clk 0:03:03]} 10. O-O {[%clk 0:02:51]}  e6 {[%clk 0:03:03]} 11. c4 {[%clk 0:02:50]}  Bd6 {[%clk 0:03:03]} 12. Qb3 {[%clk 0:02:34]}  Rb8 {[%clk 0:02:57]} 13. Re1 {[%clk 0:02:25]}  O-O {[%clk 0:02:55]} 14. Ne2 {[%clk 0:02:20]}  c5 {[%clk 0:02:50]} 15. d5 {[%clk 0:02:12]}  exd5 {[%clk 0:02:50]} 16. cxd5 {[%clk 0:02:13]}  Nb6 {[%clk 0:02:50]} 17. Nc3 {[%clk 0:02:04]}  c4 {[%clk 0:02:25]} 18. Qc2 {[%clk 0:02:04]}  Bc5 {[%clk 0:02:25]} 19. Rd1 {[%clk 0:01:50]}  Ng4 {[%clk 0:02:23]} 20. Ne4 {[%clk 0:01:50]}  Rc8 {[%clk 0:02:09]} 21. d6 {[%clk 0:01:14]}  Nd7 {[%clk 0:02:06]} 22. Nxc5 {[%clk 0:01:09]}  Rxc5 {[%clk 0:02:04]} 23. Qe4 {[%clk 0:01:06]}  Qb6 {[%clk 0:01:45]} 24. Qxg4 {[%clk 0:01:02]}  h5 {[%clk 0:01:37]} 25. Qg3 {[%clk 0:01:00]}  Rf5 {[%clk 0:01:36]} 26. Bh6 {[%clk 0:00:55]}  Qxb2 {[%clk 0:01:34]} 27. Rab1 {[%clk 0:00:49]}  Qf6 {[%clk 0:01:31]} 28. Bg5 {[%clk 0:00:49]}  Qg6 {[%clk 0:01:30]} 29. Rxb7 {[%clk 0:00:49]}  Nc5 {[%clk 0:01:28]} 30. Rxa7 {[%clk 0:00:45]}  Ne4 {[%clk 0:01:12]} 31. Qh3 {[%clk 0:00:45]}  f6 {[%clk 0:01:09]} 32. d7 {[%clk 0:00:34]}  Rd8 {[%clk 0:01:08]} 33. Be3 {[%clk 0:00:30]}  c3 {[%clk 0:00:59]} 34. Nd4 {[%clk 0:00:29]}  Rd5 {[%clk 0:00:53]} 35. Qe6+ {[%clk 0:00:20]}  Qf7 {[%clk 0:00:52]} 36. Qxe4 {[%clk 0:00:20]}  R5xd7 {[%clk 0:00:45]} 37. Rxd7 {[%clk 0:00:20]}  Qxd7 {[%clk 0:00:43]} 38. Rc1 {[%clk 0:00:20]}  Rc8 {[%clk 0:00:40]} 39. Qe6+ {[%clk 0:00:20]}  Qxe6 {[%clk 0:00:39]} 40. Nxe6 {[%clk 0:00:21]}  c2 {[%clk 0:00:39]} 41. Nd4 {[%clk 0:00:21]}  f5 {[%clk 0:00:35]} 42. Rxc2 {[%clk 0:00:22]}  Rb8 {[%clk 0:00:32]} 43. Nxf5 {[%clk 0:00:21]}  Rb1+ {[%clk 0:00:33]} 44. Kh2 {[%clk 0:00:22]}  g6 {[%clk 0:00:34]} 45. Ne7+ {[%clk 0:00:21]}  Kf7 {[%clk 0:00:35]} 46. Nd5 {[%clk 0:00:21]}  Ke6 {[%clk 0:00:35]} 47. Nf4+ {[%clk 0:00:21]}  Kf5 {[%clk 0:00:34]} 48. Rc5+ {[%clk 0:00:22]}  Ke4 {[%clk 0:00:31]} 49. Nxg6 {[%clk 0:00:21]}  Rh1+ {[%clk 0:00:27]} 50. Kxh1 {[%clk 0:00:15]}  Kd3 {[%clk 0:00:27]} 51. Rxh5 {[%clk 0:00:15]}  Ke2 {[%clk 0:00:28]} 52. Rg5 {[%clk 0:00:16]}  Kf1 {[%clk 0:00:28]} 53. Ba7 {[%clk 0:00:16]}  Ke2 {[%clk 0:00:29]} 54. f4 {[%clk 0:00:16]}  Kf1 {[%clk 0:00:30]} 55. f5 {[%clk 0:00:17]}  Ke2 {[%clk 0:00:31]} 56. g4 {[%clk 0:00:17]}  Kf1 {[%clk 0:00:32]} 57. h5 {[%clk 0:00:17]}  Ke2 {[%clk 0:00:32]} 58. h6 {[%clk 0:00:18]}  Kf1 {[%clk 0:00:26]} 59. h7 {[%clk 0:00:19]}  Ke2 {[%clk 0:00:27]} 60. h8=Q {[%clk 0:00:20]}  Kf3 {[%clk 0:00:28]} 61. Qc3+ {[%clk 0:00:20]}  Ke2 {[%clk 0:00:28]} 62. Qe3+ {[%clk 0:00:20]}  Kd1 {[%clk 0:00:28]} 63. Qf2 {[%clk 0:00:20]}  Kc1 {[%clk 0:00:28]} 64. Ne5 {[%clk 0:00:19]}  Kb1 {[%clk 0:00:28]} 65. Nc4 {[%clk 0:00:20]}  Kc1 {[%clk 0:00:27]} 66. Qd2+ {[%clk 0:00:20]}  Kb1 {[%clk 0:00:26]} 67. Qb2# {[%clk 0:00:21]} 1-0


[Site "https://www.chess.com"]

[Event "Titled Tuesday Blitz September 27 Late 2022"]
[White "Ozalp, Burak"]
[Black "Hemam, Moulaye Brahim"]
[WhiteFideId "6314210"]
[BlackFideId "19600054"]
[WhiteElo "1854"]
[BlackElo "2088"]
[Result "0-1"]
[Round "11"]
[TimeControl "180+1"]
[Date "2022.09.28"]
[WhiteClock "0:00:14"]
[BlackClock "0:00:38"]

1. Nf3 {[%clk 0:02:59]}  Nf6 {[%clk 0:02:59]} 2. g3 {[%clk 0:02:59]}  g6 {[%clk 0:02:59]} 3. Bg2 {[%clk 0:03:00]}  Bg7 {[%clk 0:03:00]} 4. O-O {[%clk 0:03:01]}  O-O {[%clk 0:02:59]} 5. d3 {[%clk 0:02:55]}  d6 {[%clk 0:02:59]} 6. c4 {[%clk 0:02:52]}  c5 {[%clk 0:02:59]} 7. Nbd2 {[%clk 0:02:52]}  Nc6 {[%clk 0:02:59]} 8. Rb1 {[%clk 0:02:51]}  Rb8 {[%clk 0:02:58]} 9. a3 {[%clk 0:02:51]}  Bg4 {[%clk 0:02:54]} 10. b4 {[%clk 0:02:51]}  cxb4 {[%clk 0:02:52]} 11. axb4 {[%clk 0:02:51]}  a6 {[%clk 0:02:51]} 12. b5 {[%clk 0:02:43]}  axb5 {[%clk 0:02:49]} 13. Rxb5 {[%clk 0:02:44]}  Na7 {[%clk 0:02:39]} 14. Rb1 {[%clk 0:02:37]}  b5 {[%clk 0:02:39]} 15. Bb2 {[%clk 0:02:37]}  bxc4 {[%clk 0:02:37]} 16. Nxc4 {[%clk 0:02:38]}  Nc6 {[%clk 0:02:22]} 17. Qd2 {[%clk 0:02:37]}  Nb4 {[%clk 0:02:16]} 18. Rfc1 {[%clk 0:02:33]}  d5 {[%clk 0:02:09]} 19. Ne3 {[%clk 0:02:30]}  Bxf3 {[%clk 0:02:03]} 20. Bxf3 {[%clk 0:02:29]}  e6 {[%clk 0:01:58]} 21. Bxf6 {[%clk 0:02:28]}  Qxf6 {[%clk 0:01:49]} 22. Rxb4 {[%clk 0:02:25]}  Rbd8 {[%clk 0:01:47]} 23. Rb7 {[%clk 0:02:05]}  Qg5 {[%clk 0:01:37]} 24. Rcc7 {[%clk 0:01:44]}  Bh6 {[%clk 0:01:36]} 25. Qb4 {[%clk 0:01:34]}  Bg7 {[%clk 0:01:29]} 26. Qf4 {[%clk 0:01:23]}  Qxf4 {[%clk 0:01:20]} 27. gxf4 {[%clk 0:01:24]}  Bh6 {[%clk 0:01:20]} 28. Ng2 {[%clk 0:01:17]}  Ra8 {[%clk 0:01:20]} 29. h3 {[%clk 0:01:16]}  Ra4 {[%clk 0:01:17]} 30. e3 {[%clk 0:01:14]}  d4 {[%clk 0:01:15]} 31. e4 {[%clk 0:01:06]}  Ra3 {[%clk 0:01:14]} 32. Be2 {[%clk 0:01:04]}  Ra1+ {[%clk 0:01:11]} 33. Kh2 {[%clk 0:01:01]}  Ra2 {[%clk 0:01:11]} 34. Bg4 {[%clk 0:00:55]}  Rxf2 {[%clk 0:01:08]} 35. Kg3 {[%clk 0:00:56]}  Rd2 {[%clk 0:01:05]} 36. Bxe6 {[%clk 0:00:56]}  fxe6 {[%clk 0:01:05]} 37. Rxh7 {[%clk 0:00:53]}  Rxd3+ {[%clk 0:01:04]} 38. Kg4 {[%clk 0:00:53]}  Rd2 {[%clk 0:00:53]} 39. Kg3 {[%clk 0:00:30]}  Rd3+ {[%clk 0:00:50]} 40. Kf2 {[%clk 0:00:26]}  Rd2+ {[%clk 0:00:48]} 41. Kf3 {[%clk 0:00:26]}  Rd3+ {[%clk 0:00:48]} 42. Ke2 {[%clk 0:00:25]}  Rg3 {[%clk 0:00:46]} 43. Kf2 {[%clk 0:00:25]}  Rxh3 {[%clk 0:00:43]} 44. Rbe7 {[%clk 0:00:19]}  d3 {[%clk 0:00:42]} 45. Rd7 {[%clk 0:00:17]}  d2 {[%clk 0:00:41]} 46. Ke2 {[%clk 0:00:16]}  Rh2 {[%clk 0:00:40]} 47. Rxh6 {[%clk 0:00:15]}  Rxh6 {[%clk 0:00:39]} 48. Rxd2 {[%clk 0:00:14]}  Rh2 {[%clk 0:00:40]} 49. Kf3 {[%clk 0:00:14]}  e5 {[%clk 0:00:39]} 50. Kg3 {[%clk 0:00:15]}  Rh7 {[%clk 0:00:39]} 51. fxe5 {[%clk 0:00:15]}  Re7 {[%clk 0:00:39]} 52. Rd5 {[%clk 0:00:15]}  Rfe8 {[%clk 0:00:39]} 53. Kf4 {[%clk 0:00:16]}  g5+ {[%clk 0:00:39]} 54. Kf5 {[%clk 0:00:16]}  Rf7+ {[%clk 0:00:37]} 55. Kxg5 {[%clk 0:00:15]}  Rg7+ {[%clk 0:00:38]} 56. Kf5 {[%clk 0:00:14]}  Rxg2 {[%clk 0:00:38]} 57. e6 {[%clk 0:00:15]}  Rf2+ {[%clk 0:00:39]} 58. Ke5 {[%clk 0:00:15]}  Rh2 {[%clk 0:00:37]} 59. Rd7 {[%clk 0:00:15]}  Rh7 {[%clk 0:00:37]} 60. Rxh7 {[%clk 0:00:10]}  Kxh7 {[%clk 0:00:37]} 61. Kd6 {[%clk 0:00:11]}  Kg8 {[%clk 0:00:37]} 62. Kd7 {[%clk 0:00:12]}  Kf8 {[%clk 0:00:38]} 63. e5 {[%clk 0:00:12]}  Re7+ {[%clk 0:00:38]} 64. Kd6 {[%clk 0:00:12]}  Ke8 {[%clk 0:00:38]} 65. Kd5 {[%clk 0:00:13]}  Ra7 {[%clk 0:00:37]} 66. Kd6 {[%clk 0:00:13]}  Ra6+ {[%clk 0:00:37]} 67. Kd5 {[%clk 0:00:14]}  Ke7 {[%clk 0:00:37]} 68. Ke4 {[%clk 0:00:14]}  Kxe6 {[%clk 0:00:38]} 0-1


[Site "https://www.chess.com"]